[Event "Late-Titled-Tuesday-Blitz-April-02-2024"]
[Site "Chess.com"]
[Date "2024.04.02"]
[Round "5"]
[White "N_Mullodzhanov"]
[Black "Heliosis11"]
[Result "0-1"]
[WhiteElo "2550"]
[BlackElo "2420"]
[TimeControl "180+1"]
[EndTime "14:54:09 PDT"]
[Termination "Heliosis11 won by checkmate"]

1. e4 {[%clk 0:03:00.9]} 1... c5 {[%clk 0:02:48.1]} 2. c3 {[%clk 0:03:00.5]}
2... Nf6 {[%clk 0:02:46.7]} 3. e5 {[%clk 0:02:59.7]} 3... Nd5 {[%clk 0:02:45.5]}
4. Nf3 {[%clk 0:03:00]} 4... e6 {[%clk 0:02:45.2]} 5. d4 {[%clk 0:02:59.7]} 5...
cxd4 {[%clk 0:02:46.1]} 6. cxd4 {[%clk 0:03:00.5]} 6... b6 {[%clk 0:02:46.7]} 7.
Bd2 {[%clk 0:02:56.5]} 7... Be7 {[%clk 0:02:41.9]} 8. h4 {[%clk 0:02:55.6]} 8...
Ba6 {[%clk 0:02:37.9]} 9. Nc3 {[%clk 0:02:55.4]} 9... Nxc3 {[%clk 0:02:34]} 10.
Bxc3 {[%clk 0:02:52.8]} 10... Bxf1 {[%clk 0:02:34.7]} 11. Kxf1 {[%clk
0:02:53.2]} 11... d5 {[%clk 0:02:35]} 12. h5 {[%clk 0:02:51.4]} 12... h6 {[%clk
0:02:34.8]} 13. Rh3 {[%clk 0:02:51.5]} 13... Nc6 {[%clk 0:02:25.4]} 14. Rg3
{[%clk 0:02:50.4]} 14... O-O {[%clk 0:02:22.8]} 15. Qd2 {[%clk 0:02:45.1]} 15...
Kh7 {[%clk 0:02:16.3]} 16. Rc1 {[%clk 0:02:33.8]} 16... Rc8 {[%clk 0:02:13.8]}
17. Qd3+ {[%clk 0:02:28.6]} 17... Kh8 {[%clk 0:02:12.4]} 18. a3 {[%clk
0:02:26.5]} 18... b5 {[%clk 0:02:08.3]} 19. Qxb5 {[%clk 0:02:23.8]} 19... Qd7
{[%clk 0:02:08.3]} 20. Bd2 {[%clk 0:02:21.5]} 20... Nxe5 {[%clk 0:02:04.3]} 21.
Qe2 {[%clk 0:02:14.1]} 21... Nxf3 {[%clk 0:01:52.5]} 22. Qxf3 {[%clk 0:02:11.6]}
22... Rxc1+ {[%clk 0:01:48.5]} 23. Bxc1 {[%clk 0:02:12.5]} 23... Rc8 {[%clk
0:01:48.8]} 24. Be3 {[%clk 0:01:57.4]} 24... Bf6 {[%clk 0:01:45]} 25. Bxh6
{[%clk 0:01:54.2]} 25... Bxd4 {[%clk 0:01:42.9]} 26. Qg4 {[%clk 0:01:39.7]}
26... Qb5+ {[%clk 0:01:14]} 27. Kg1 {[%clk 0:01:19.2]} 27... Bxf2+ {[%clk
0:01:12.3]} 28. Kxf2 {[%clk 0:01:13.4]} 28... Qxb2+ {[%clk 0:01:11.9]} 29. Kg1
{[%clk 0:01:13.4]} 29... gxh6 {[%clk 0:00:55.6]} 30. Kh2 {[%clk 0:01:13.3]}
30... Qe5 {[%clk 0:00:42.1]} 31. a4 {[%clk 0:01:12.9]} 31... d4 {[%clk
0:00:41.3]} 32. a5 {[%clk 0:01:02.9]} 32... d3 {[%clk 0:00:39.7]} 33. Qd1 {[%clk
0:00:49.4]} 33... Rd8 {[%clk 0:00:33.5]} 34. Qd2 {[%clk 0:00:47.1]} 34... Qxh5+
{[%clk 0:00:27.7]} 35. Rh3 {[%clk 0:00:43.9]} 35... Qe5+ {[%clk 0:00:22.3]} 36.
Kh1 {[%clk 0:00:43.5]} 36... Qa1+ {[%clk 0:00:19.9]} 37. Kh2 {[%clk 0:00:43.6]}
37... Qe5+ {[%clk 0:00:20.1]} 38. Kh1 {[%clk 0:00:41.9]} 38... Kg8 {[%clk
0:00:20.4]} 39. a6 {[%clk 0:00:31.7]} 39... Qg5 {[%clk 0:00:16.2]} 40. Qd1
{[%clk 0:00:10.9]} 40... d2 {[%clk 0:00:14]} 41. Kh2 {[%clk 0:00:11.4]} 41...
Qe5+ {[%clk 0:00:13.5]} 42. Rg3+ {[%clk 0:00:11.8]} 42... Kh8 {[%clk 0:00:10.8]}
43. Kh3 {[%clk 0:00:09.7]} 43... Qf5+ {[%clk 0:00:07.3]} 44. Kh2 {[%clk
0:00:09.2]} 44... Qf4 {[%clk 0:00:06.4]} 45. Kh3 {[%clk 0:00:09.6]} 45... Qf5+
{[%clk 0:00:06.1]} 46. Kh2 {[%clk 0:00:09.5]} 46... Qe5 {[%clk 0:00:06.8]} 47.
Kh3 {[%clk 0:00:09.7]} 47... Qe1 {[%clk 0:00:06.9]} 48. Qf3 {[%clk 0:00:02.2]}
48... Qh1+ {[%clk 0:00:04.7]} 49. Kg4 {[%clk 0:00:02.6]} 49... Rd4+ {[%clk
0:00:04.8]} 50. Qf4 {[%clk 0:00:01.3]} 50... Rxf4+ {[%clk 0:00:05]} 51. Kxf4
{[%clk 0:00:01.8]} 51... d1=Q {[%clk 0:00:05.2]} 52. Rf3 {[%clk 0:00:01.8]}
52... Qh4+ {[%clk 0:00:04.9]} 53. g4 {[%clk 0:00:01.8]} 53... Qd4# {[%clk
0:00:05.2]} 0-1

[Event "Late-Titled-Tuesday-Blitz-April-02-2024"]
[Site "Chess.com"]
[Date "2024.04.02"]
[Round "5"]
[White "sergiochess83"]
[Black "JoakimVonAnd"]
[Result "1-0"]
[WhiteElo "2965"]
[BlackElo "2696"]
[TimeControl "180+1"]
[EndTime "14:54:10 PDT"]
[Termination "sergiochess83 won by resignation"]

1. d4 {[%clk 0:02:56.5]} 1... d5 {[%clk 0:02:55.9]} 2. c4 {[%clk 0:02:56.8]}
2... e6 {[%clk 0:02:55.9]} 3. Nc3 {[%clk 0:02:57]} 3... Nf6 {[%clk 0:02:56.1]}
4. cxd5 {[%clk 0:02:56.7]} 4... exd5 {[%clk 0:02:57]} 5. Bg5 {[%clk 0:02:56.9]}
5... Be7 {[%clk 0:02:57]} 6. e3 {[%clk 0:02:57.5]} 6... c6 {[%clk 0:02:55.9]} 7.
Bd3 {[%clk 0:02:57.6]} 7... O-O {[%clk 0:02:52.4]} 8. Qc2 {[%clk 0:02:57.5]}
8... h6 {[%clk 0:02:52.3]} 9. Bh4 {[%clk 0:02:57.8]} 9... Re8 {[%clk 0:02:51.1]}
10. Nge2 {[%clk 0:02:57.9]} 10... a5 {[%clk 0:02:50.4]} 11. Bg3 {[%clk
0:02:50.5]} 11... Na6 {[%clk 0:02:48.6]} 12. a3 {[%clk 0:02:50.1]} 12... Nc7
{[%clk 0:02:46.4]} 13. O-O {[%clk 0:02:47.6]} 13... Ne6 {[%clk 0:02:43.7]} 14.
a4 {[%clk 0:02:32.8]} 14... b6 {[%clk 0:02:36.4]} 15. Rad1 {[%clk 0:02:29.8]}
15... Bb7 {[%clk 0:02:36.2]} 16. f3 {[%clk 0:02:28.9]} 16... c5 {[%clk
0:02:32.6]} 17. Nb5 {[%clk 0:02:26.4]} 17... Rc8 {[%clk 0:02:13.9]} 18. Qd2
{[%clk 0:02:22.1]} 18... h5 {[%clk 0:01:55]} 19. Bf5 {[%clk 0:02:20.8]} 19... g6
{[%clk 0:01:50.5]} 20. Bxe6 {[%clk 0:02:19.8]} 20... fxe6 {[%clk 0:01:51.4]} 21.
Nf4 {[%clk 0:02:13.2]} 21... Kf7 {[%clk 0:01:49.9]} 22. Qd3 {[%clk 0:02:03.3]}
22... Rg8 {[%clk 0:01:48.4]} 23. e4 {[%clk 0:01:55]} 23... g5 {[%clk 0:01:31.2]}
24. Ne2 {[%clk 0:01:10.3]} 24... h4 {[%clk 0:01:30.6]} 25. Be5 {[%clk
0:01:09.8]} 25... Ba6 {[%clk 0:01:01.5]} 26. Bxf6 {[%clk 0:00:55.2]} 26... Bxf6
{[%clk 0:01:00.6]} 27. e5 {[%clk 0:00:55.8]} 27... Be7 {[%clk 0:01:00.5]} 28. f4
{[%clk 0:00:56]} 28... Kg7 {[%clk 0:00:43.3]} 29. fxg5 {[%clk 0:00:44.7]} 29...
Bxg5 {[%clk 0:00:42.5]} 30. Rf7+ {[%clk 0:00:13.3]} 30... Kxf7 {[%clk
0:00:41.3]} 31. Qh7+ {[%clk 0:00:13.8]} 31... Rg7 {[%clk 0:00:40.1]} 32. Rf1+
{[%clk 0:00:14]} 32... Bf6 {[%clk 0:00:39.1]} 33. Rxf6+ {[%clk 0:00:06.1]} 33...
Qxf6 {[%clk 0:00:38.1]} 34. Nd6+ {[%clk 0:00:06.8]} 34... Ke7 {[%clk 0:00:21.5]}
35. exf6+ {[%clk 0:00:06.5]} 35... Kxf6 {[%clk 0:00:18.5]} 36. Qxh4+ {[%clk
0:00:06.5]} 36... Rg5 {[%clk 0:00:15.5]} 37. Nxc8 {[%clk 0:00:03.9]} 37... Bxe2
{[%clk 0:00:15.2]} 38. Nd6 {[%clk 0:00:04.2]} 38... Bd3 {[%clk 0:00:15.2]} 39.
Qh6+ {[%clk 0:00:03.7]} 39... Rg6 {[%clk 0:00:15.4]} 40. Qf8+ {[%clk 0:00:03.6]}
40... Kg5 {[%clk 0:00:16]} 41. Qf3 {[%clk 0:00:03.4]} 41... Bf5 {[%clk
0:00:13.6]} 42. Nxf5 {[%clk 0:00:03.3]} 42... exf5 {[%clk 0:00:14.5]} 43. Qxd5
{[%clk 0:00:03.5]} 43... cxd4 {[%clk 0:00:15.1]} 44. Qxd4 {[%clk 0:00:03.7]}
44... Rc6 {[%clk 0:00:15.4]} 45. Qd2+ {[%clk 0:00:04.2]} 45... Kf6 {[%clk
0:00:15.1]} 46. h3 {[%clk 0:00:05.1]} 46... Re6 {[%clk 0:00:15]} 47. Qc3+ {[%clk
0:00:05.2]} 47... Ke7 {[%clk 0:00:15.1]} 48. Kh2 {[%clk 0:00:06.1]} 48... Rd6
{[%clk 0:00:14.8]} 49. b4 {[%clk 0:00:06.4]} 49... axb4 {[%clk 0:00:14.9]} 50.
Qxb4 {[%clk 0:00:07.3]} 50... Ke6 {[%clk 0:00:15.6]} 51. Qb5 {[%clk 0:00:07.6]}
51... Kf6 {[%clk 0:00:14.8]} 52. Qe8 {[%clk 0:00:07.3]} 52... Re6 {[%clk
0:00:14.9]} 53. Qf8+ {[%clk 0:00:07.5]} 53... Ke5 {[%clk 0:00:15.4]} 54. Qd8
{[%clk 0:00:07.6]} 54... Rd6 {[%clk 0:00:14.9]} 55. Qc7 {[%clk 0:00:07.4]} 55...
Ke6 {[%clk 0:00:14.9]} 56. h4 {[%clk 0:00:08.3]} 56... Rd5 {[%clk 0:00:14.3]}
57. Qxb6+ {[%clk 0:00:07.7]} 57... Ke5 {[%clk 0:00:14.4]} 58. a5 {[%clk
0:00:08.6]} 58... Rd4 {[%clk 0:00:15]} 59. Qxd4+ {[%clk 0:00:07.9]} 59... Kxd4
{[%clk 0:00:15.9]} 60. a6 {[%clk 0:00:08.6]} 1-0

[Event "Late-Titled-Tuesday-Blitz-April-02-2024"]
[Site "Chess.com"]
[Date "2024.04.02"]
[Round "5"]
[White "remyrushbrooke"]
[Black "kikoveiga"]
[Result "1-0"]
[WhiteElo "2251"]
[BlackElo "2478"]
[TimeControl "180+1"]
[EndTime "14:54:10 PDT"]
[Termination "remyrushbrooke won by resignation"]

1. Nf3 {[%clk 0:02:55.5]} 1... Nf6 {[%clk 0:02:59.7]} 2. g3 {[%clk 0:02:54.8]}
2... g6 {[%clk 0:03:00.2]} 3. Bg2 {[%clk 0:02:54.6]} 3... Bg7 {[%clk 0:03:00.9]}
4. d4 {[%clk 0:02:53.4]} 4... O-O {[%clk 0:03:00.8]} 5. c4 {[%clk 0:02:53.3]}
5... d6 {[%clk 0:03:01.4]} 6. Nc3 {[%clk 0:02:52.1]} 6... Nc6 {[%clk 0:03:01.9]}
7. O-O {[%clk 0:02:51.7]} 7... e5 {[%clk 0:03:02.3]} 8. dxe5 {[%clk 0:02:52]}
8... dxe5 {[%clk 0:03:03.2]} 9. Qxd8 {[%clk 0:02:51.5]} 9... Rxd8 {[%clk
0:03:03.2]} 10. Bg5 {[%clk 0:02:51.7]} 10... h6 {[%clk 0:02:55.9]} 11. Bxf6
{[%clk 0:02:50.6]} 11... Bxf6 {[%clk 0:02:56.1]} 12. Nd5 {[%clk 0:02:51.2]}
12... Bg7 {[%clk 0:02:47.3]} 13. Nxc7 {[%clk 0:02:50.8]} 13... Rb8 {[%clk
0:02:45.9]} 14. Nd5 {[%clk 0:02:50.4]} 14... Be6 {[%clk 0:02:44.6]} 15. e4
{[%clk 0:02:29]} 15... b5 {[%clk 0:02:22.3]} 16. Nd2 {[%clk 0:02:13.4]} 16...
Nd4 {[%clk 0:02:12]} 17. Rfd1 {[%clk 0:01:43.9]} 17... Kf8 {[%clk 0:01:52.6]}
18. c5 {[%clk 0:01:38.4]} 18... f5 {[%clk 0:01:33.7]} 19. b4 {[%clk 0:01:22.2]}
19... fxe4 {[%clk 0:00:52.3]} 20. Nc7 {[%clk 0:01:12.2]} 20... Bf5 {[%clk
0:00:47.4]} 21. Bxe4 {[%clk 0:01:08.4]} 21... Rbc8 {[%clk 0:00:27.2]} 22. Na6
{[%clk 0:00:14.7]} 22... Ke7 {[%clk 0:00:22.1]} 23. a4 {[%clk 0:00:11.8]} 23...
Ne2+ {[%clk 0:00:15]} 24. Kf1 {[%clk 0:00:10.6]} 24... Nc3 {[%clk 0:00:15.9]}
25. Bxf5 {[%clk 0:00:09.9]} 25... gxf5 {[%clk 0:00:16.8]} 26. axb5 {[%clk
0:00:07.4]} 26... Nxd1 {[%clk 0:00:15.3]} 27. Rxd1 {[%clk 0:00:08.3]} 27... e4
{[%clk 0:00:14.5]} 28. Ke2 {[%clk 0:00:07]} 28... Bc3 {[%clk 0:00:14.6]} 29. Nc4
{[%clk 0:00:07]} 29... Rxd1 {[%clk 0:00:14.8]} 30. Kxd1 {[%clk 0:00:07.7]} 30...
Ke6 {[%clk 0:00:14.9]} 31. Kc2 {[%clk 0:00:08.1]} 31... Be5 {[%clk 0:00:13.7]}
32. Kb3 {[%clk 0:00:07]} 32... Bd4 {[%clk 0:00:13.9]} 33. b6 {[%clk 0:00:06.5]}
33... axb6 {[%clk 0:00:13.8]} 34. cxb6 {[%clk 0:00:07.4]} 34... Bxf2 {[%clk
0:00:14]} 35. b7 {[%clk 0:00:07.8]} 35... Rd8 {[%clk 0:00:11.1]} 36. b8=Q {[%clk
0:00:06.3]} 36... Rxb8 {[%clk 0:00:11.2]} 37. Nxb8 {[%clk 0:00:07.1]} 37... e3
{[%clk 0:00:11.8]} 38. Nxe3 {[%clk 0:00:05]} 38... Bxe3 {[%clk 0:00:12]} 39. Na6
{[%clk 0:00:04.7]} 39... f4 {[%clk 0:00:11.9]} 40. gxf4 {[%clk 0:00:04.1]} 40...
Bxf4 {[%clk 0:00:12.2]} 41. h3 {[%clk 0:00:03.8]} 41... Bd6 {[%clk 0:00:10.4]}
42. Nc5+ {[%clk 0:00:03.5]} 42... Kf5 {[%clk 0:00:07.7]} 43. Nd3 {[%clk
0:00:04]} 43... Kg5 {[%clk 0:00:07.6]} 44. b5 {[%clk 0:00:03.1]} 44... Kh4
{[%clk 0:00:07.9]} 45. Nf2 {[%clk 0:00:02.4]} 45... Kg3 {[%clk 0:00:08.3]} 46.
Ne4+ {[%clk 0:00:02.4]} 46... Kxh3 {[%clk 0:00:09]} 47. Nxd6 {[%clk 0:00:03.2]}
47... Kg3 {[%clk 0:00:09.5]} 48. b6 {[%clk 0:00:04.1]} 48... h5 {[%clk 0:00:10]}
49. b7 {[%clk 0:00:05]} 49... h4 {[%clk 0:00:10.6]} 50. b8=Q {[%clk 0:00:05.7]}
50... Kg2 {[%clk 0:00:10.1]} 51. Ne4 {[%clk 0:00:05.5]} 51... h3 {[%clk
0:00:11]} 52. Qg8+ {[%clk 0:00:05.2]} 52... Kf3 {[%clk 0:00:06.4]} 53. Qh7
{[%clk 0:00:06.1]} 53... h2 {[%clk 0:00:05.8]} 54. Qxh2 {[%clk 0:00:06.2]} 54...
Ke3 {[%clk 0:00:06.7]} 55. Qg3+ {[%clk 0:00:06.2]} 1-0

[Event "Late-Titled-Tuesday-Blitz-April-02-2024"]
[Site "Chess.com"]
[Date "2024.04.02"]
[Round "5"]
[White "Slovak_fighter2000"]
[Black "SergioMoralesG"]
[Result "0-1"]
[WhiteElo "2553"]
[BlackElo "2421"]
[TimeControl "180+1"]
[EndTime "14:54:11 PDT"]
[Termination "SergioMoralesG won by checkmate"]

1. c4 {[%clk 0:02:55.5]} 1... c5 {[%clk 0:02:59.7]} 2. Nc3 {[%clk 0:02:55.1]}
2... Nc6 {[%clk 0:02:59.6]} 3. g3 {[%clk 0:02:53.5]} 3... g6 {[%clk 0:02:58.2]}
4. Bg2 {[%clk 0:02:53.6]} 4... Bg7 {[%clk 0:02:58.9]} 5. e4 {[%clk 0:02:48]}
5... d6 {[%clk 0:02:56.8]} 6. Nge2 {[%clk 0:02:44.7]} 6... e6 {[%clk 0:02:57]}
7. d3 {[%clk 0:02:42.1]} 7... Nge7 {[%clk 0:02:57]} 8. Be3 {[%clk 0:02:39]} 8...
Nd4 {[%clk 0:02:53.7]} 9. O-O {[%clk 0:02:29.5]} 9... O-O {[%clk 0:02:52.8]} 10.
Rb1 {[%clk 0:02:26.3]} 10... Nec6 {[%clk 0:02:43.5]} 11. a3 {[%clk 0:02:21.4]}
11... Rb8 {[%clk 0:02:21.3]} 12. b4 {[%clk 0:02:19.3]} 12... Nxe2+ {[%clk
0:02:16.6]} 13. Nxe2 {[%clk 0:02:18.6]} 13... cxb4 {[%clk 0:02:17.2]} 14. axb4
{[%clk 0:02:19.4]} 14... b5 {[%clk 0:02:17.5]} 15. c5 {[%clk 0:02:15.5]} 15...
a5 {[%clk 0:01:36.9]} 16. bxa5 {[%clk 0:01:56.7]} 16... Nxa5 {[%clk 0:01:36]}
17. cxd6 {[%clk 0:01:50.3]} 17... Qxd6 {[%clk 0:01:35.9]} 18. d4 {[%clk
0:01:48.8]} 18... Nc4 {[%clk 0:01:18.5]} 19. Bf4 {[%clk 0:01:45]} 19... e5
{[%clk 0:01:18.8]} 20. dxe5 {[%clk 0:01:41.7]} 20... Bxe5 {[%clk 0:01:04.7]} 21.
Qxd6 {[%clk 0:01:35.9]} 21... Bxd6 {[%clk 0:01:03.9]} 22. Bxd6 {[%clk
0:01:35.1]} 22... Nxd6 {[%clk 0:01:04.8]} 23. e5 {[%clk 0:01:34.9]} 23... Nc4
{[%clk 0:01:01.1]} 24. f4 {[%clk 0:01:32.2]} 24... Bf5 {[%clk 0:00:58.6]} 25.
Rb4 {[%clk 0:01:29.5]} 25... Rfd8 {[%clk 0:00:40.3]} 26. Rc1 {[%clk 0:01:25.4]}
26... Ne3 {[%clk 0:00:24.5]} 27. Be4 {[%clk 0:01:20.6]} 27... Rd2 {[%clk
0:00:20]} 28. Bxf5 {[%clk 0:01:10.5]} 28... gxf5 {[%clk 0:00:16.1]} 29. Nd4
{[%clk 0:01:00.3]} 29... Ra8 {[%clk 0:00:13.2]} 30. Nf3 {[%clk 0:00:48.5]} 30...
Rg2+ {[%clk 0:00:09.3]} 31. Kh1 {[%clk 0:00:49]} 31... Raa2 {[%clk 0:00:08.1]}
32. Rb3 {[%clk 0:00:46.4]} 32... Rae2 {[%clk 0:00:06]} 33. Rg1 {[%clk
0:00:37.5]} 33... Rgf2 {[%clk 0:00:05.7]} 34. Rxe3 {[%clk 0:00:26]} 34... Rxe3
{[%clk 0:00:05.6]} 35. Nh4 {[%clk 0:00:20.2]} 35... Ree2 {[%clk 0:00:05.3]} 36.
Rc1 {[%clk 0:00:13.3]} 36... Rxh2+ {[%clk 0:00:04.3]} 37. Kg1 {[%clk 0:00:14]}
37... Kg7 {[%clk 0:00:04.7]} 38. Rc6 {[%clk 0:00:10.6]} 38... h5 {[%clk
0:00:02.6]} 39. Nxf5+ {[%clk 0:00:10.4]} 39... Kh7 {[%clk 0:00:03.3]} 40. Nh4
{[%clk 0:00:07.1]} 40... Rh3 {[%clk 0:00:02.4]} 41. Nf5 {[%clk 0:00:06.5]} 41...
b4 {[%clk 0:00:02.4]} 42. Rb6 {[%clk 0:00:06.4]} 42... b3 {[%clk 0:00:02.3]} 43.
Rxb3 {[%clk 0:00:05.9]} 43... Ra2 {[%clk 0:00:02.5]} 44. Rb7 {[%clk 0:00:04.2]}
44... Rhh2 {[%clk 0:00:03]} 45. Nh4 {[%clk 0:00:03.3]} 45... Kg7 {[%clk
0:00:03.1]} 46. e6 {[%clk 0:00:02.8]} 46... Rhd2 {[%clk 0:00:03.3]} 47. Rxf7+
{[%clk 0:00:03.3]} 47... Kg8 {[%clk 0:00:04.1]} 48. Nf3 {[%clk 0:00:02.5]} 48...
Rd1+ {[%clk 0:00:04.9]} 49. Ne1 {[%clk 0:00:02.8]} 49... Rxe1# {[%clk
0:00:05.6]} 0-1

[Event "Late-Titled-Tuesday-Blitz-April-02-2024"]
[Site "Chess.com"]
[Date "2024.04.02"]
[Round "5"]
[White "GoltsevDmitry2000"]
[Black "dolynachess"]
[Result "0-1"]
[WhiteElo "2780"]
[BlackElo "2531"]
[TimeControl "180+1"]
[EndTime "14:54:14 PDT"]
[Termination "dolynachess won on time"]

1. e4 {[%clk 0:03:00.9]} 1... c5 {[%clk 0:02:49.5]} 2. Nf3 {[%clk 0:03:00.1]}
2... d6 {[%clk 0:02:43.8]} 3. d4 {[%clk 0:03:00.6]} 3... cxd4 {[%clk 0:02:44.7]}
4. Nxd4 {[%clk 0:03:01.4]} 4... Nf6 {[%clk 0:02:45]} 5. Nc3 {[%clk 0:03:02]}
5... g6 {[%clk 0:02:44.4]} 6. Be2 {[%clk 0:03:01.9]} 6... Nc6 {[%clk 0:02:43.3]}
7. O-O {[%clk 0:03:02.1]} 7... Nxd4 {[%clk 0:02:39.4]} 8. Qxd4 {[%clk
0:03:01.5]} 8... Bg7 {[%clk 0:02:40.3]} 9. Be3 {[%clk 0:02:56.5]} 9... O-O
{[%clk 0:02:40.1]} 10. Qd2 {[%clk 0:02:57.1]} 10... Bd7 {[%clk 0:02:31.1]} 11.
Rad1 {[%clk 0:02:56.9]} 11... Re8 {[%clk 0:02:29.5]} 12. f4 {[%clk 0:02:54.2]}
12... Qa5 {[%clk 0:02:28.8]} 13. e5 {[%clk 0:02:52.2]} 13... Ng4 {[%clk
0:02:09.1]} 14. Bd4 {[%clk 0:02:34.9]} 14... dxe5 {[%clk 0:01:47.6]} 15. fxe5
{[%clk 0:02:33.9]} 15... Bxe5 {[%clk 0:01:47.7]} 16. h3 {[%clk 0:01:59.5]} 16...
Nf6 {[%clk 0:01:05.2]} 17. Bxe5 {[%clk 0:01:28.5]} 17... Qxe5 {[%clk 0:01:06.1]}
18. Rxf6 {[%clk 0:01:28.7]} 18... Qxf6 {[%clk 0:00:54.4]} 19. Qxd7 {[%clk
0:01:28.2]} 19... Qb6+ {[%clk 0:00:54]} 20. Kh1 {[%clk 0:01:11.4]} 20... Qxb2
{[%clk 0:00:38.2]} 21. Ne4 {[%clk 0:00:51.1]} 21... Qxc2 {[%clk 0:00:29.6]} 22.
Bf3 {[%clk 0:00:44.9]} 22... Rad8 {[%clk 0:00:21.6]} 23. Qxd8 {[%clk 0:00:43.9]}
23... Rxd8 {[%clk 0:00:22.3]} 24. Rxd8+ {[%clk 0:00:44.7]} 24... Kg7 {[%clk
0:00:23.1]} 25. Rd7 {[%clk 0:00:42.9]} 25... Kf8 {[%clk 0:00:16.1]} 26. Rxb7
{[%clk 0:00:40.6]} 26... Qxa2 {[%clk 0:00:15.8]} 27. Kh2 {[%clk 0:00:28.4]}
27... a5 {[%clk 0:00:15.8]} 28. Nc5 {[%clk 0:00:22]} 28... a4 {[%clk 0:00:13.7]}
29. Nd7+ {[%clk 0:00:04.5]} 29... Kg7 {[%clk 0:00:13.2]} 30. Ne5 {[%clk
0:00:05.4]} 30... Qa3 {[%clk 0:00:09.9]} 31. Nc6 {[%clk 0:00:03.8]} 31... Qd6+
{[%clk 0:00:09.3]} 32. g3 {[%clk 0:00:04.3]} 32... a3 {[%clk 0:00:09.5]} 33. Ra7
{[%clk 0:00:04.4]} 33... Qd2+ {[%clk 0:00:09.5]} 34. Bg2 {[%clk 0:00:04]} 34...
a2 {[%clk 0:00:09.7]} 35. Nb4 {[%clk 0:00:02.4]} 35... Qxb4 {[%clk 0:00:09.1]}
36. Rxa2 {[%clk 0:00:03]} 36... e5 {[%clk 0:00:08.8]} 37. Re2 {[%clk 0:00:03.4]}
37... Qc5 {[%clk 0:00:07.4]} 38. Re4 {[%clk 0:00:03.4]} 38... Qd6 {[%clk
0:00:07.5]} 39. Ra4 {[%clk 0:00:03.2]} 39... f5 {[%clk 0:00:07.6]} 40. Ra7+
{[%clk 0:00:02.5]} 40... Kh6 {[%clk 0:00:08.2]} 41. h4 {[%clk 0:00:02.3]} 41...
Qd2 {[%clk 0:00:07.9]} 42. Rb7 {[%clk 0:00:02.1]} 42... e4 {[%clk 0:00:07.9]}
43. Re7 {[%clk 0:00:01.6]} 43... Qf2 {[%clk 0:00:07.3]} 44. Kh3 {[%clk
0:00:01.5]} 44... Qg1 {[%clk 0:00:06.8]} 45. g4 {[%clk 0:00:01.5]} 45... fxg4+
{[%clk 0:00:04.2]} 46. Kg3 {[%clk 0:00:01.9]} 46... e3 {[%clk 0:00:03.7]} 47.
Re4 {[%clk 0:00:01.5]} 47... Qf2+ {[%clk 0:00:03.7]} 48. Kxg4 {[%clk 0:00:01.3]}
48... Qxg2+ {[%clk 0:00:04]} 49. Kf4 {[%clk 0:00:01.1]} 49... e2 {[%clk
0:00:04.1]} 0-1